bitfinex/quotes_ETHUSD_20251017
["timestamp","ask_amount","ask_price","bid_price","bid_amount"]
[1760705432697,0.04597386,3792.3,3792.1,0.6612]
[1760705432908,0.04597386,3792.3,3792.1,0.2177]
[1760705433277,0.04597386,3792.3,3792.2,2.63699171]
[1760705433479,14.45775276,3793.8,3792.3,2.63685403]
[1760705433778,0.04595977,3792.9,3792.8,2.63656977]
[1760705433978,0.002,3793.8,3793.2,2.63629056]
[1760705434210,0.002,3793.8,3793.7,0.2166]
[1760705434882,0.002,3793.8,3793.7,0.6601]
[1760705435303,0.002,3793.8,3793.7,0.2166]
[1760705435509,0.002,3793.8,3793.7,0.6601]
[1760705436703,2.63787959,3793.8,3793.7,0.6601]
[1760705436910,0.002,3793.8,3792.2,0.54918057]
[1760705437129,2.63607861,3793.6,3793.3,0.2166]
[1760705437331,0.002,3793.8,3793.0,0.4435]
[1760705437487,2.63629701,3793.2,3792.9,0.2166]
[1760705438124,2.63657456,3792.8,3792.1,0.001]
[1760705438323,18.82074447,3792.2,3792.1,0.001]
[1760705438696,36.05228447,3792.2,3792.1,0.001]
[1760705438901,30.27364947,3792.2,3792.1,0.001]
[1760705439104,26.36923047,3792.2,3792.1,0.001]
[1760705439695,34.02865847,3792.2,3792.1,0.001]
[1760705439900,33.33865847,3792.2,3792.1,0.001]
[1760705440110,21.86694609,3792.2,3792.1,0.001]
[1760705440310,4.36499171,3792.2,3792.1,0.001]
[1760705440497,4.41096506,3792.2,3792.1,0.001]
[1760705442823,4.41016506,3792.2,3792.1,0.001]
[1760705444018,4.41016506,3792.2,3792.1,0.2177]
[1760705444738,4.41016506,3792.2,3792.1,0.001]
[1760705445445,19.57062464,3792.2,3792.1,0.001]
[1760705445643,19.79442464,3792.2,3792.1,0.001]
[1760705446022,22.89552164,3792.2,3792.1,0.001]
[1760705447150,22.69576241,3792.2,3792.1,0.001]
[1760705447658,24.33358141,3792.2,3792.1,0.001]
[1760705447966,23.22666541,3792.2,3792.1,0.001]
[1760705448140,2.48240583,3792.2,3792.1,0.001]
[1760705449031,2.48240583,3792.2,3792.1,0.2177]
[1760705449850,2.48240583,3792.2,3792.1,0.001]
[1760705450051,4.62407611,3792.2,3792.1,0.001]
[1760705451538,4.21040583,3792.2,3792.1,0.001]
[1760705451737,1.77397335,3792.2,3792.1,0.001]
[1760705451951,1.77397335,3792.2,3792.1,0.2228]
[1760705451952,4.41096506,3792.2,3792.1,0.2228]
[1760705452465,5.06977474,3792.2,3792.1,0.001]
[1760705452879,4.36499171,3792.2,3792.1,0.001]
[1760705453732,1.728,3792.2,3792.1,0.001]
[1760705453927,1.728,3792.2,3792.1,0.2228]
[1760705454257,4.36499171,3792.2,3792.1,0.2228]
[1760705454962,4.41096175,3792.2,3792.1,0.2228]
[1760705455760,4.41096175,3792.2,3792.1,0.001]
[1760705456137,1.728,3792.2,3792.1,0.001]
[1760705456341,4.36499171,3792.2,3792.1,0.001]
[1760705458934,4.4109623,3792.2,3792.1,0.001]
[1760705459139,4.82463122,3792.2,3792.1,0.2228]
[1760705459340,4.82463122,3792.2,3792.1,0.001]
[1760705461240,4.82463122,3792.2,3792.1,0.2228]
[1760705461468,2.18963951,3792.2,3792.1,0.6511]
[1760705461992,4.82663122,3792.2,3792.1,0.6511]
[1760705462398,4.82663122,3792.2,3792.1,0.001]
[1760705462565,2.18963951,3792.2,3792.1,0.4644]
[1760705462764,4.82663122,3792.2,3792.1,0.001]
[1760705463298,4.4129623,3792.2,3792.1,0.001]
[1760705464866,4.6367623,3792.2,3792.1,0.001]
[1760705465401,5.36412956,3792.2,3792.1,0.001]
[1760705465989,5.14032956,3792.2,3792.1,0.001]
[1760705466189,5.36412956,3792.2,3792.1,0.001]
[1760705466772,5.36332956,3792.2,3792.1,0.001]
[1760705466966,14.33708556,3792.2,3792.1,0.001]
[1760705467302,18.82608756,3792.2,3792.1,0.001]
[1760705467502,11.51688856,3792.2,3792.1,0.001]
[1760705467666,10.9957798,3792.2,3792.1,0.001]
[1760705468004,10.94980921,3792.2,3792.1,0.001]
[1760705468199,6.36466421,3792.2,3792.1,0.001]
[1760705468394,25.39328321,3792.2,3792.1,0.001]
[1760705469315,30.60248721,3792.2,3792.1,0.001]
[1760705469817,9.23369621,3792.2,3792.1,0.001]
[1760705469997,5.73106421,3792.2,3792.1,0.001]
[1760705470202,8.45390161,3792.2,3792.1,0.001]
[1760705470517,13.55966161,3792.2,3792.1,0.001]
[1760705470672,10.56445161,3792.2,3792.1,0.001]
[1760705471613,5.13953237,3792.2,3792.1,0.001]
[1760705471787,8.93812437,3792.2,3792.1,0.001]
[1760705472098,7.60792437,3792.2,3792.1,0.001]
[1760705472476,5.36333237,3792.2,3792.1,0.001]
[1760705472676,19.47507837,3792.2,3792.1,0.001]
[1760705472909,13.86335437,3792.2,3792.1,0.001]
[1760705473109,13.98915537,3792.2,3791.8,0.001]
[1760705473272,25.92885489,3791.8,3791.7,0.001]
[1760705473472,14.12606989,3791.8,3791.7,0.001]
[1760705473668,6.66931789,3791.8,3791.7,0.001]
[1760705473869,4.36526989,3791.8,3791.7,0.001]
[1760705474096,4.41124644,3791.8,3791.7,0.001]
[1760705474297,4.36526989,3791.8,3791.7,0.001]
[1760705474497,6.67609368,3791.8,3791.7,0.001]
[1760705474880,7.08980203,3791.8,3791.7,0.001]
[1760705475200,3.05097824,3791.8,3791.7,0.4644]
[1760705475378,0.41370835,3791.8,3791.7,0.4644]
[1760705475583,2.14170835,3791.8,3791.7,0.4644]
[1760705475971,3.05097824,3791.8,3791.7,0.4644]
[1760705476804,3.05097824,3791.8,3791.7,0.001]
[1760705477100,0.41370835,3791.8,3791.7,0.4644]
[1760705477290,0.45968281,3791.8,3791.7,0.4644]
[1760705477691,3.0969527,3791.8,3791.7,0.001]
[1760705477886,5.42072685,3791.8,3791.7,0.001]
[1760705478906,4.8249527,3791.8,3791.7,0.001]
[1760705479792,2.18768281,3791.8,3791.7,0.4644]
[1760705480296,4.8249527,3791.8,3791.7,0.4644]
[1760705480493,2.18768281,3791.8,3791.7,0.4644]
[1760705481076,4.8249527,3791.8,3791.7,0.001]
[1760705481296,2.18768281,3791.8,3791.7,0.4644]
[1760705482222,4.8249527,3791.8,3791.7,0.4644]
[1760705482507,2.18768281,3791.8,3791.7,0.4644]
[1760705482722,0.002,3792.2,3791.7,0.4644]
[1760705482897,0.002,3792.2,3792.1,0.2242]
[1760705483391,0.1987,3792.2,3791.7,0.001]
[1760705483591,2.63717569,3792.0,3791.7,0.001]
[1760705483810,4.36526989,3791.8,3791.7,0.001]
[1760705484394,4.41124244,3791.8,3791.7,0.001]
[1760705484786,1.728,3791.8,3791.7,0.001]
[1760705485097,4.36526989,3791.8,3791.7,0.001]
[1760705485511,1.728,3791.8,3791.7,0.001]
[1760705485889,2.14169775,3791.8,3791.7,0.001]
[1760705486106,4.77896764,3791.8,3791.7,0.001]
[1760705486307,2.14169775,3791.8,3791.7,0.001]
[1760705486682,1.728,3791.8,3791.7,0.4287]
[1760705486918,0.002,3792.2,3791.7,0.4287]
[1760705487211,0.002,3792.2,3791.8,0.4277]
[1760705487212,0.41371196,3791.9,3791.8,0.4277]
[1760705487781,1.73,3792.2,3791.8,0.4277]
[1760705487989,2.63899415,3792.2,3791.8,0.4277]
[1760705488187,0.41368777,3791.9,3791.7,0.001]
[1760705488483,0.41368777,3791.9,3791.7,0.4287]
[1760705488708,0.45965974,3791.9,3791.7,0.4287]
[1760705488903,0.45965974,3791.9,3791.7,0.001]
[1760705489099,0.45965974,3791.9,3791.7,0.4287]
[1760705489299,0.04597197,3791.9,3791.8,0.4277]
[1760705490503,0.04517197,3791.9,3791.8,0.4277]
[1760705491816,0.04517197,3791.9,3791.7,2.63833023]
[1760705491984,0.04517197,3791.9,3791.8,3.06496989]
[1760705494893,0.04517197,3791.9,3791.8,2.63726989]
[1760705495088,0.04517197,3791.9,3791.7,0.001]
[1760705495418,2.63714157,3792.0,3791.7,0.001]
[1760705495620,2.83384157,3792.0,3791.7,0.001]
[1760705495788,0.1967,3792.0,3791.7,0.001]
[1760705495985,0.002,3792.2,3791.7,0.4287]
[1760705496193,2.63905373,3792.2,3791.7,0.4287]
[1760705496398,2.63901149,3792.2,3791.7,0.001]
[1760705496796,0.1967,3792.1,3791.7,0.001]
[1760705496996,4.36526989,3791.8,3791.7,0.001]
[1760705497410,4.56196989,3791.8,3791.7,0.001]
[1760705497794,8.93934489,3791.8,3791.7,0.001]
[1760705498419,8.98532244,3791.8,3791.7,0.001]
[1760705498612,11.69933934,3791.8,3791.7,0.001]
[1760705498928,17.64153855,3791.8,3791.7,0.001]
[1760705499111,17.93549742,3791.8,3791.7,0.001]
[1760705499708,3.27114813,3791.4,3791.3,0.001]
[1760705500026,1.728,3790.2,3789.5,0.4277]
[1760705500229,1.728,3790.2,3789.5,3.06655566]
[1760705500387,0.04598731,3790.1,3789.6,2.63878269]
[1760705500718,0.04598731,3790.1,3789.8,2.6386578]
[1760705500920,0.04598731,3790.1,3789.9,0.4277]
[1760705501135,0.04598731,3790.1,3790.0,2.63852242]
[1760705501302,0.04598731,3790.1,3789.1,2.63913521]
[1760705501504,0.04598731,3790.1,3789.9,2.63857779]
[1760705501800,0.04598731,3790.1,3790.0,3.06622242]
[1760705502004,0.04598731,3790.1,3790.0,0.4277]
[1760705502206,0.04598731,3790.1,3789.0,2.86339244]
[1760705502407,0.04598731,3790.1,3789.8,2.63863627]
[1760705502599,0.04598731,3790.1,3789.7,2.63872837]
[1760705502924,0.04598731,3790.1,3789.5,0.4277]
[1760705503127,0.04598731,3790.1,3789.5,3.06655542]
[1760705503624,0.04598731,3790.1,3789.4,0.4277]
[1760705503924,0.04598731,3790.1,3789.5,2.63886928]
[1760705504218,2.68444542,3790.1,3789.6,0.57055747]
[1760705504423,0.04598731,3790.1,3789.5,2.63885153]
[1760705504625,0.04598731,3790.1,3789.4,0.4277]
[1760705505202,0.04598731,3790.1,3789.6,2.63879032]
[1760705505525,0.04598731,3790.1,3789.6,3.06649032]
[1760705505830,0.04598731,3790.1,3789.6,3.06649257]
[1760705505993,0.04598731,3790.1,3789.7,2.63872]
[1760705506199,0.04598731,3790.1,3789.7,3.06642]
[1760705506931,0.04598731,3790.1,3789.7,0.4277]
[1760705507135,0.04598731,3790.1,3789.3,0.4277]
[1760705507337,2.63852242,3790.0,3789.3,3.06665304]
[1760705507529,2.6844511,3790.1,3789.4,2.6389273]
[1760705508131,2.6844511,3790.1,3789.5,2.63886685]
[1760705508340,2.63853103,3790.0,3789.3,0.4277]
[1760705509235,2.63855308,3790.0,3789.3,0.4277]
[1760705509533,2.63854822,3790.0,3789.3,0.4277]
[1760705510236,2.63854822,3790.0,3789.3,3.06670366]
[1760705510409,2.63863887,3789.9,3789.3,0.4277]
[1760705510604,2.63853587,3790.0,3789.3,3.06670342]
[1760705510803,0.04598731,3790.1,3789.3,3.06670342]
[1760705510804,0.04598731,3790.1,3789.4,2.6389402]
[1760705511005,2.68446055,3790.1,3789.4,2.6389402]
[1760705511438,0.04598731,3790.1,3789.5,2.63885907]
[1760705511637,0.04598731,3790.1,3789.3,0.4277]
[1760705512029,0.04598731,3790.1,3789.1,2.63914913]
[1760705512343,2.63853005,3790.0,3789.3,2.6389916]
[1760705512847,2.63853005,3790.0,3789.2,0.35245491]
[1760705512848,3.0671073,3789.9,3789.2,2.63906505]
[1760705513149,2.63867994,3789.8,3789.1,2.63913291]
[1760705513314,0.4285,3789.9,3789.0,0.2242]
[1760705513514,2.63886768,3789.6,3789.0,0.2242]
[1760705513729,2.63866167,3789.8,3789.0,0.2242]
[1760705513934,0.04598937,3789.7,3789.1,2.63909029]
[1760705514131,2.68392442,3789.7,3789.1,2.63909029]
[1760705514331,2.68392442,3789.7,3789.1,2.63912788]
[1760705514610,2.68394801,3789.7,3789.1,2.63909433]
[1760705515247,2.63881344,3789.6,3789.0,0.2242]
[1760705515462,0.04518937,3789.7,3789.0,0.2242]
[1760705515463,2.63889937,3789.5,3789.0,0.2242]
[1760705515673,2.63889934,3789.5,3788.9,0.222]
[1760705515868,2.63889934,3789.5,3787.9,0.222]
[1760705515869,2.63921596,3789.1,3788.5,0.222]
[1760705516357,2.63921596,3789.1,3787.9,0.222]
[1760705516358,2.63914913,3789.1,3788.2,2.86176676]
[1760705516520,2.63919415,3789.1,3788.2,2.86176676]
[1760705516719,2.84472613,3789.2,3788.2,3.91725425]
[1760705517018,0.2056,3790.0,3789.1,0.2242]
[1760705517218,2.63874073,3789.7,3789.1,0.6634]
[1760705517442,1.728,3789.7,3789.1,0.6634]
[1760705517642,2.63874443,3789.7,3789.0,2.63917346]
[1760705517946,2.63873919,3789.7,3789.1,2.63914574]
[1760705518320,2.86150158,3789.9,3789.2,2.63907948]
[1760705518718,2.86150158,3789.9,3789.1,0.2242]
[1760705518919,3.06710158,3789.9,3789.2,2.63905259]
[1760705519137,3.06710158,3789.9,3789.1,0.2242]
[1760705519138,0.4285,3789.9,3789.1,0.2242]
[1760705519461,0.04599301,3789.8,3789.1,2.64014179]
[1760705519662,1.728,3789.7,3789.1,2.64014179]
[1760705520021,1.728,3789.7,3789.1,0.001]
[1760705520330,0.04599301,3789.8,3789.3,2.63894454]
[1760705520528,0.04599301,3789.8,3789.4,0.4392]
[1760705520843,0.04599301,3789.8,3789.2,0.2242]
[1760705521026,2.63877457,3789.7,3789.1,0.001]
[1760705521232,1.728,3789.7,3789.2,3.07827258]
[1760705521422,1.728,3789.7,3789.1,0.2252]
[1760705521423,1.728,3789.7,3789.3,0.4392]
[1760705521936,1.728,3789.7,3789.2,2.63907545]
[1760705521937,2.14192351,3789.7,3789.2,2.63907545]
[1760705522139,2.14192351,3789.7,3789.1,2.86433436]
[1760705522361,1.728,3789.7,3789.2,2.6390379]
[1760705523071,1.728,3789.7,3789.2,3.0782379]
[1760705523231,5.65273384,3789.4,3789.1,0.001]
[1760705523433,2.6390571,3789.3,3789.1,0.001]
[1760705523631,2.63905533,3789.3,3789.1,0.001]
[1760705523832,0.04599361,3789.3,3789.1,0.001]
[1760705524031,0.04599361,3789.3,3789.2,0.6738]
[1760705524263,0.04599361,3789.3,3789.1,0.001]
[1760705524763,2.63907948,3789.2,3789.1,0.001]
[1760705524963,6.68338848,3789.2,3789.1,0.001]
[1760705525164,10.22551332,3789.2,3789.1,0.001]
[1760705526566,12.30042932,3789.2,3789.1,0.001]
[1760705526773,14.98763123,3789.2,3789.1,0.001]
[1760705526977,11.76085323,3789.2,3789.1,0.001]
[1760705527182,11.55515323,3789.2,3789.1,0.001]
[1760705527734,11.76085323,3789.2,3789.1,0.001]
[1760705528033,11.55515323,3789.2,3789.1,0.001]
[1760705528564,11.60115378,3789.2,3789.1,0.001]
[1760705528749,11.80685378,3789.2,3789.1,0.001]
[1760705529064,11.60115378,3789.2,3789.1,0.001]
[1760705529367,11.80685378,3789.2,3789.1,0.001]
[1760705531865,1.77400055,3789.2,3789.1,0.001]
[1760705532068,4.41308003,3789.2,3789.1,0.001]
[1760705532268,0.222,3791.6,3789.3,2.779]
[1760705532470,0.002,3791.8,3791.7,2.63733945]
[1760705532657,0.002,3791.8,3791.7,5.9563608]
[1760705532965,0.04597974,3792.9,3792.1,2.63706125]
[1760705533168,0.04597974,3792.9,3792.5,2.63678312]
[1760705533372,0.002,3793.8,3792.5,3.27038312]
[1760705533676,0.04595935,3793.5,3792.5,2.81668312]
[1760705533970,0.04595935,3793.5,3792.5,2.63678312]
[1760705534171,0.04595935,3793.5,3792.1,0.59342894]
[1760705534172,5.65273384,3793.2,3792.1,0.59342894]
[1760705534470,5.65273384,3792.4,3791.6,2.637409]
[1760705534635,5.65273384,3792.4,3790.8,2.63790385]
[1760705534835,5.65273384,3792.4,3790.5,0.6336]
[1760705534836,5.65273384,3792.4,3791.6,2.637409]
[1760705535271,8.28961132,3792.4,3791.5,2.82336858]
[1760705535468,2.63687748,3792.4,3791.5,2.82336858]
[1760705535668,0.31019775,3792.3,3791.6,2.63738855]
[1760705536259,0.31019775,3792.3,3791.7,2.63733544]
[1760705536459,0.31019775,3792.3,3791.6,2.63739747]
[1760705536970,0.31019775,3792.3,3791.5,2.82330942]
[1760705537165,0.31019775,3792.3,3791.5,0.1859]
[1760705537351,0.31019775,3792.3,3791.6,2.637409]
[1760705537740,0.04596872,3792.2,3791.7,2.6373162]
[1760705537938,0.04516872,3792.2,3791.7,2.6373162]
[1760705538547,0.04516872,3792.2,3792.0,2.63711196]
[1760705538737,0.04516872,3792.2,3791.8,2.63726989]
[1760705539368,0.04516872,3792.2,3791.9,2.63717442]
[1760705539770,0.04516872,3792.2,3791.7,2.63732326]
[1760705540145,0.04516872,3792.2,3791.6,2.63739266]
[1760705540981,0.04516872,3792.2,3791.6,2.63740238]
[1760705541152,0.04516872,3792.2,3791.7,2.63733085]
[1760705542064,0.04516872,3792.2,3792.1,2.63706125]
[1760705542448,0.002,3792.3,3792.2,2.63699171]
[1760705543680,0.002,3792.3,3792.1,2.63706023]
[1760705543984,0.4633,3792.2,3791.7,2.63732551]
[1760705544188,0.4633,3792.2,3791.6,2.637409]
[1760705544350,0.4633,3792.2,3791.7,2.63733945]
[1760705544548,0.002,3792.3,3791.8,2.63724984]
[1760705544984,0.002,3792.3,3791.9,2.63716175]
[1760705545281,0.002,3792.3,3791.6,2.63739822]
[1760705545487,0.002,3792.3,3791.7,2.63733945]
[1760705545785,0.002,3792.3,3791.9,2.63719338]
[1760705546586,0.002,3792.3,3791.8,2.637252]
[1760705547079,0.002,3792.3,3792.0,2.63712508]
[1760705547376,0.002,3792.3,3791.9,2.63719185]
[1760705548458,0.002,3792.3,3791.5,0.1859]
[1760705548653,0.002,3792.3,3791.9,2.63713285]
[1760705548854,0.002,3792.3,3791.8,2.63725687]
[1760705549455,0.002,3792.3,3791.9,2.63715543]
[1760705549682,0.002,3792.3,3791.5,0.48623796]
[1760705549881,2.63893608,3792.3,3791.6,2.637409]
[1760705550183,0.4633,3792.2,3791.2,0.1799]
[1760705550383,0.4633,3792.2,3790.0,2.63847113]
[1760705550384,0.2333,3791.7,3790.7,0.1799]
[1760705550554,1.728,3792.0,3791.4,2.63753638]
[1760705550758,1.728,3792.1,3791.1,0.1799]
[1760705550955,1.77396991,3792.2,3791.5,2.63746225]
[1760705551152,0.04596991,3792.2,3790.4,0.6336]
[1760705551488,0.04596991,3792.2,3791.0,2.76898804]
[1760705551686,0.04596991,3792.2,3791.8,2.63725907]
[1760705552088,0.04596991,3792.2,3791.7,2.63733112]
[1760705552391,0.04596991,3792.2,3791.8,0.02637269]
[1760705552581,0.04596991,3792.2,3791.4,0.02637548]
[1760705552899,0.04596991,3792.2,3792.1,2.63706125]
[1760705553094,0.50926991,3792.2,3791.2,0.1312]
[1760705553280,0.2333,3791.3,3788.7,2.64036036]
[1760705553485,0.2333,3791.3,3790.3,2.63830564]
[1760705553688,2.63777323,3791.1,3790.3,2.63830564]
[1760705553876,0.0263798,3791.0,3790.4,2.63822917]
[1760705554077,0.2333,3790.9,3790.4,2.63822917]
[1760705554278,0.2333,3790.9,3790.1,2.63840152]
[1760705554594,0.2333,3790.9,3790.4,2.63822212]
[1760705554891,0.2333,3790.9,3790.5,2.6381555]
[1760705555497,0.4633,3790.8,3789.0,1.728]
[1760705555700,0.4633,3790.8,3788.7,0.001]
[1760705555701,0.4896798,3790.8,3788.7,0.001]
[1760705555869,1.728,3790.6,3789.1,2.64013318]
[1760705556068,0.4896798,3790.5,3789.1,0.001]
[1760705556282,4.36653082,3790.0,3789.1,2.64014633]
[1760705556478,0.0263798,3789.9,3789.2,2.63906949]
[1760705556679,0.4633,3789.8,3789.1,0.001]
[1760705556883,2.63888948,3789.5,3789.1,0.001]
[1760705557081,2.66532619,3789.4,3789.1,0.001]
[1760705557299,0.0263798,3789.4,3789.1,0.001]
[1760705557486,0.4633,3789.5,3789.1,0.001]
[1760705557888,2.32897612,3790.1,3789.1,2.640147]
[1760705558197,1.728,3789.7,3789.1,0.001]
[1760705558370,0.0263798,3789.7,3789.1,2.64012289]
[1760705558570,0.0263798,3790.0,3789.1,0.001]
[1760705558803,2.63892015,3789.5,3789.1,0.001]
[1760705559004,2.63901278,3789.3,3789.1,0.001]
[1760705559205,2.63907948,3789.2,3789.1,0.001]
[1760705559503,4.85675928,3789.2,3789.1,0.001]
[1760705560074,11.18318323,3789.2,3789.1,0.001]
[1760705560273,11.15680343,3789.2,3789.1,0.001]
[1760705560785,7.71048443,3789.2,3789.1,0.001]
[1760705560986,10.28561947,3789.2,3789.1,0.001]
[1760705561386,7.45151547,3789.2,3789.1,0.001]
[1760705561906,25.10065447,3789.2,3789.1,0.001]
[1760705562086,21.37710047,3789.2,3789.1,0.001]
[1760705562430,21.37710047,3789.2,3788.7,0.001]
[1760705562431,2.6393581,3788.8,3788.7,0.001]
[1760705562579,32.29309881,3788.8,3788.7,0.001]
[1760705562908,24.98752701,3788.8,3788.7,0.001]
[1760705563106,21.97011777,3788.8,3788.7,0.001]
[1760705563610,19.33419777,3788.8,3788.7,0.001]
[1760705563788,19.67486342,3788.8,3788.7,0.001]
[1760705564605,26.69004542,3788.8,3788.7,0.001]
[1760705565624,19.67486342,3788.8,3788.7,0.001]
[1760705565910,33.69142242,3788.8,3788.7,0.001]
[1760705566102,32.18069842,3788.8,3788.7,0.001]
[1760705566814,36.99079042,3788.8,3788.7,0.001]
[1760705567008,37.40488088,3788.8,3788.7,0.001]
[1760705567311,27.46941988,3788.8,3788.7,0.001]
[1760705567611,20.72255388,3788.8,3788.7,0.001]
[1760705567915,31.54251612,3788.8,3788.7,0.001]
[1760705568211,31.58853105,3788.8,3788.7,0.001]
[1760705568580,30.0,3788.5,3786.8,2.64074561]
[1760705568776,2.6402549,3787.6,3786.8,0.52816307]
[1760705569011,0.0263798,3787.5,3786.2,1.728]
[1760705569215,2.66664992,3787.5,3786.2,1.728]
[1760705569425,0.0263798,3787.5,3786.9,2.64067004]
[1760705569621,0.0263798,3787.5,3786.2,1.728]
[1760705569827,0.0263798,3787.5,3787.0,2.64061104]
[1760705570024,0.0263798,3787.5,3786.2,1.728]
[1760705570195,0.4896798,3787.5,3786.7,2.64077427]
[1760705570512,0.15625305,3787.5,3786.6,2.64082809]
[1760705570719,2.79653151,3787.5,3786.8,2.64072415]
[1760705570880,2.79653151,3787.5,3786.3,0.43691952]
[1760705570881,2.6404565,3787.3,3786.4,2.64098071]
[1760705571210,2.64047875,3787.2,3786.4,2.64098071]
[1760705571384,2.64047875,3787.2,3786.5,2.64094453]
[1760705571585,2.64047875,3787.2,3786.3,0.43691952]
[1760705571586,2.64047875,3787.2,3786.6,2.64087338]
[1760705571796,2.64072605,3786.9,3785.7,0.132]
[1760705572030,0.0263798,3786.8,3785.7,0.132]
[1760705572190,0.0263798,3786.8,3786.2,2.6411444]
[1760705572393,0.0263798,3786.8,3786.2,2.64116924]
[1760705572725,0.0263798,3786.8,3785.7,0.132]
[1760705573086,1.7543798,3786.8,3786.2,2.64116259]
[1760705573286,1.7543798,3786.8,3785.0,2.64194009]
[1760705573287,2.85614545,3786.9,3784.9,1.728]
[1760705573513,0.0263798,3786.8,3785.8,2.64143305]
[1760705573723,2.6407605,3786.8,3785.8,2.64143305]
[1760705573924,2.6407605,3786.8,3785.0,2.64199402]
[1760705574130,2.64089938,3786.6,3785.8,2.64141929]
[1760705574339,0.0263798,3786.5,3785.2,2.64186832]
[1760705574614,0.0263798,3786.5,3785.3,2.64179853]
[1760705574831,0.0263798,3786.5,3785.1,0.2641994]
[1760705574832,0.0263798,3786.5,3785.2,1.728]
[1760705575033,0.0263798,3786.5,3785.9,2.64136408]
[1760705575187,0.56671625,3786.5,3785.1,0.2641994]
[1760705575391,2.64092977,3786.6,3785.8,2.64143871]
[1760705575584,2.64080715,3786.8,3785.7,2.64150256]
[1760705575832,2.6409652,3786.5,3785.8,2.64144607]
[1760705576126,2.64108193,3786.4,3785.4,2.64172874]
[1760705576415,2.64090088,3786.6,3785.6,2.64155684]
[1760705576617,0.0263798,3786.3,3785.6,2.64155684]
[1760705576820,0.31146009,3786.5,3785.3,0.001]
[1760705576996,2.66741827,3786.4,3785.4,2.64172874]
[1760705577210,0.0263798,3786.4,3785.8,2.64139636]
[1760705577410,2.64095113,3786.6,3785.3,0.001]
[1760705577612,2.64095113,3786.6,3785.9,2.64137197]
[1760705577802,2.64096408,3786.5,3785.8,2.64143193]
[1760705578005,2.64096408,3786.5,3785.3,0.001]
[1760705578006,2.66747117,3786.4,3785.6,2.64152789]
[1760705578213,2.66747117,3786.4,3785.7,2.64149581]
[1760705578714,2.66747117,3786.4,3785.3,0.001]
[1760705578715,2.64172874,3785.4,3785.3,0.001]
[1760705579034,2.64200792,3785.0,3782.8,2.64353348]
[1760705579336,15.37325272,3785.0,3783.0,2.64334408]
[1760705579536,1.728,3784.9,3783.0,2.6434047]
[1760705579722,1.728,3784.9,3781.8,2.64419758]
[1760705579723,1.728,3784.1,3783.1,2.64329387]
[1760705579929,0.0263798,3784.0,3783.2,2.64321678]
[1760705580126,0.0263798,3784.0,3783.3,2.64318287]
[1760705580438,0.0263798,3784.0,3783.2,2.6431995]
[1760705580657,0.0263798,3784.0,3783.2,0.26431995]
[1760705580944,2.2017,3784.0,3782.9,2.64347266]
[1760705581154,0.0263798,3783.9,3782.9,2.64347266]
[1760705581299,14.45752791,3783.6,3781.3,2.709]
[1760705581504,2.66948404,3783.5,3782.6,2.64367197]
[1760705581724,2.66948404,3783.5,3781.1,2.64467993]
[1760705581725,14.45752791,3783.1,3780.0,14.45752791]
[1760705581912,0.0263798,3783.0,3781.0,2.64480296]
[1760705582135,0.0263798,3783.0,3782.2,2.64396353]
[1760705582322,0.0263798,3783.0,3782.0,2.64403648]
[1760705582642,2.64361152,3782.8,3781.8,2.64418388]
[1760705582842,0.2154,3782.9,3780.9,2.64487291]
[1760705582843,0.0263798,3782.7,3780.9,2.64487291]
[1760705583050,0.2154,3782.9,3781.0,0.53598729]
[1760705583256,14.45752791,3782.1,3780.9,0.132]
[1760705583455,0.0263798,3782.0,3779.8,0.01456465]
[1760705583753,2.4171,3782.9,3780.7,2.64501282]
[1760705583935,0.0263798,3782.8,3780.8,0.02644942]
[1760705584113,2.64330299,3783.2,3781.6,2.6443829]
[1760705584311,1.728,3782.9,3781.7,0.26443829]
[1760705584518,0.0263798,3782.8,3781.7,0.26443829]
[1760705584740,0.0263798,3782.8,3781.6,2.64437653]
[1760705585047,0.0263798,3782.8,3781.2,0.6336]
[1760705585247,1.9543,3782.7,3781.1,2.64468577]
[1760705585548,0.0263798,3782.6,3781.4,2.64450765]
[1760705585764,2.64386963,3782.4,3780.0,2.64544706]
[1760705585917,0.83966145,3782.3,3780.1,4.35716122]
[1760705586126,2.6443134,3781.7,3780.1,2.64542102]
[1760705586416,2.6443134,3781.7,3779.5,0.64065986]
[1760705586417,2.64461724,3781.3,3779.8,2.64557963]
[1760705586655,14.45752791,3782.0,3779.5,0.64065986]
[1760705586656,2.64250358,3784.3,3781.4,1.728]
[1760705586836,0.04608474,3783.9,3781.7,0.6336]
[1760705587046,0.41473579,3783.1,3781.8,0.02644243]
[1760705587214,0.41473579,3783.1,3781.5,1.61855279]
[1760705587215,0.27238474,3783.9,3782.3,2.64382615]
[1760705587422,1.728,3783.7,3781.5,1.61855279]
[1760705587621,0.4589,3783.6,3781.6,0.02644383]
[1760705587916,0.4589,3783.6,3781.6,2.64438332]
[1760705588262,0.04607929,3783.2,3782.6,2.64363957]
[1760705588756,0.04607929,3783.2,3782.8,2.64348103]
[1760705588957,0.04607929,3783.2,3781.9,0.66004173]
[1760705589126,0.04607929,3783.2,3782.8,2.64350726]
[1760705589334,0.04607929,3783.2,3782.8,0.26435073]
[1760705589737,0.04607929,3783.2,3782.4,2.64382402]
[1760705589939,0.04607929,3783.2,3782.9,2.64340623]
[1760705590131,0.04607929,3783.2,3782.9,2.64345958]
[1760705590338,0.04607929,3783.2,3782.8,2.64354059]
[1760705590527,0.04607929,3783.2,3781.9,0.6336]
[1760705590747,0.04607929,3783.2,3782.5,2.64370897]
[1760705590920,0.04607929,3783.2,3782.2,2.64391852]
[1760705591122,0.04607929,3783.2,3782.3,0.60155185]
[1760705591365,0.4589,3783.1,3780.5,2.64510951]
[1760705591522,0.4589,3783.1,3782.2,2.64391219]
[1760705591722,0.4589,3783.1,3782.0,2.6440611]
[1760705592255,0.41467557,3783.1,3781.7,0.6336]
[1760705592443,0.04607929,3783.2,3782.9,2.64347458]
[1760705592643,0.04607929,3783.2,3783.1,2.64333483]
[1760705593161,0.04607929,3783.2,3783.0,2.90774919]